fUSD/lending_fUSD_20250321
["ID","MTS","AMOUNT","RATE_DAILY","PERIOD"]
[356514487,1742590890050,-500.0,0.00047397,120]
[356514488,1742590890082,-1590.67,0.00047397,120]
[356514489,1742590890113,-2243.09,0.00047397,120]
[356514491,1742590890151,-500.0,0.00047397,120]
[356514492,1742590890184,-1314.42,0.00047397,120]
[356514493,1742590890216,-2195.2,0.00047397,120]
[356514494,1742590890260,-500.0,0.00047397,120]
[356514495,1742590890291,-542.35,0.00047397,120]
[356514496,1742590890324,-500.0,0.00047397,120]
[356514497,1742590890357,-751.58,0.00047397,120]
[356514499,1742590890602,-500.0,0.00047397,120]
[356514500,1742590890644,-1473.81,0.00047397,120]
[356514501,1742590890678,-500.0,0.00047397,120]
[356514502,1742590890710,-500.0,0.00047397,120]
[356514503,1742590890742,-718.58,0.00047397,120]
[356514505,1742590890774,-500.0,0.00047397,120]
[356514506,1742590890811,-613.62,0.00047397,120]
[356514507,1742590890844,-500.0,0.00047397,120]
[356514508,1742590890877,-733.08,0.00047397,120]
[356514509,1742590890910,-716.19,0.00047397,120]
[356514510,1742590890943,-500.0,0.00047397,120]
[356514511,1742590890976,-500.0,0.00047397,120]
[356514512,1742590891009,-500.0,0.00047397,120]
[356514513,1742590891041,-505.89,0.00047397,120]
[356514514,1742590891072,-958.6,0.00047397,120]
[356514516,1742590891106,-500.0,0.00047397,120]
[356514517,1742590891142,-512.25293139,0.00047397,120]
[356514518,1742590891176,-500.0,0.00047397,120]
[356514519,1742590891213,-695.76,0.00047397,120]
[356514520,1742590891249,-6397.29,0.00047397,120]
[356514521,1742590891285,-2097.86,0.00047397,120]
[356514522,1742590891323,-1632.48,0.00047397,120]
[356514523,1742590891359,-500.0,0.00047397,120]
[356514524,1742590891394,-730.44,0.00047397,120]
[356514525,1742590891429,-843.94,0.00047397,120]
[356514527,1742590891463,-500.0,0.00047397,120]
[356514528,1742590891498,-500.0,0.00047397,120]
[356514529,1742590891532,-500.0,0.00047397,120]
[356514530,1742590891566,-2646.71,0.00047397,120]
[356514531,1742590891599,-500.0,0.00047397,120]
[356514532,1742590891634,-723.47,0.00047397,120]
[356514533,1742590891668,-500.0,0.00047397,120]
[356514534,1742590891702,-500.0,0.00047397,120]
[356514535,1742590891734,-5764.63,0.00047397,120]
[356514536,1742590891767,-1046.09,0.00047397,120]
[356514537,1742590891800,-500.0,0.00047397,120]
[356514538,1742590891834,-500.0,0.00047397,120]
[356514539,1742590891865,-500.0,0.00047397,120]
[356514540,1742590891897,-538.05,0.00047397,120]
[356514541,1742590891930,-500.0,0.00047397,120]
[356514542,1742590891962,-500.0,0.00047397,120]
[356514543,1742590891995,-604.26,0.00047397,120]
[356514544,1742590892026,-500.0,0.00047397,120]
[356514545,1742590892059,-506.97,0.00047397,120]
[356514546,1742590892091,-2895.4,0.00047397,120]
[356514547,1742590892127,-500.0,0.00047397,120]
[356514548,1742590892161,-500.0,0.00047397,120]
[356514549,1742590892194,-500.0,0.00047397,120]
[356514550,1742590892226,-500.0,0.00047397,120]
[356514551,1742590892258,-500.0,0.00047397,120]
[356514552,1742590892290,-500.0,0.00047397,120]
[356514553,1742590892323,-500.0,0.00047397,120]
[356514554,1742590892355,-522.71,0.00047397,120]
[356514555,1742590892388,-626.77,0.00047397,120]
[356514556,1742590892422,-2572.21,0.00047397,120]
[356514557,1742590892455,-664.93,0.00047397,120]
[356514558,1742590892488,-3733.51,0.00047397,120]
[356514559,1742590892521,-500.0,0.00047397,120]
[356514560,1742590892555,-500.0,0.00047397,120]
[356514561,1742590892589,-787.13,0.00047397,120]
[356514562,1742590892622,-500.0,0.00047397,120]
[356514563,1742590892656,-830.66,0.00047397,120]
[356514564,1742590892691,-1494.48,0.00047397,120]
[356514565,1742590892725,-500.0,0.00047397,120]
[356514566,1742590892758,-500.0,0.00047397,120]
[356514567,1742590892791,-2056.83,0.00047397,120]
[356514568,1742590892827,-500.0,0.00047397,120]
[356514569,1742590892865,-500.0,0.00047397,120]
[356514570,1742590892899,-500.0,0.00047397,120]
[356514571,1742590892933,-500.0,0.00047397,120]
[356514572,1742590892967,-500.0,0.00047397,120]
[356514573,1742590892999,-500.0,0.00047397,120]
[356514574,1742590893034,-500.0,0.00047397,120]
[356514575,1742590893068,-1371.2,0.00047397,120]
[356514576,1742590893102,-988.17,0.00047397,120]
[356514577,1742590893139,-3991.25,0.00047397,120]
[356514578,1742590893176,-500.0,0.00047397,120]
[356514579,1742590893212,-500.0,0.00047397,120]
[356514580,1742590893247,-740.17,0.00047397,120]
[356514581,1742590893279,-500.0,0.00047397,120]
[356514582,1742590893312,-644.49,0.00047397,120]
[356514583,1742590893346,-500.0,0.00047397,120]
[356514584,1742590893380,-500.0,0.00047397,120]
[356514585,1742590893415,-2679.63,0.00047397,120]
[356514586,1742590893449,-681.51,0.00047397,120]
[356514587,1742590893482,-547.38,0.00047397,120]
[356514588,1742590893516,-500.0,0.00047397,120]
[356514589,1742590893549,-500.0,0.00047397,120]
[356514590,1742590893583,-500.0,0.00047397,120]
[356514591,1742590893617,-500.0,0.00047397,120]
[356514592,1742590893652,-500.0,0.00047397,120]
[356514593,1742590893686,-500.0,0.00047397,120]
[356514594,1742590893721,-500.0,0.00047397,120]
[356514595,1742590893755,-8207.86,0.00047397,120]
[356514596,1742590893789,-500.0,0.00047397,120]
[356514597,1742590893823,-500.0,0.00047397,120]
[356514598,1742590893858,-500.0,0.00047397,120]
[356514599,1742590893892,-559.49,0.00047397,120]
[356514600,1742590893932,-224.43838027,0.00047397,120]
[356514601,1742590893969,-500.0,0.00047397,120]
[356514602,1742590894005,-500.0,0.00047397,120]
[356514603,1742590894043,-664.67,0.00047397,120]
[356514604,1742590894081,-500.0,0.00047397,120]
[356514605,1742590894121,-5272.17,0.00047397,120]
[356514606,1742590894159,-500.0,0.00047397,120]
[356514607,1742590894359,-500.0,0.00047397,120]
[356514608,1742590894397,-989.36,0.00047397,120]
[356514609,1742590894436,-500.0,0.00047397,120]
[356514610,1742590894474,-1000.0,0.00047397,120]
[356514611,1742590894512,-500.0,0.00047397,120]
[356514612,1742590894549,-857.61,0.00047397,120]
[356514613,1742590894586,-500.0,0.00047397,120]
[356514614,1742590894624,-500.0,0.00047397,120]
[356514615,1742590894661,-500.0,0.00047397,120]
[356514616,1742590894697,-500.0,0.00047397,120]
[356514617,1742590894733,-500.0,0.00047397,120]
[356514618,1742590894766,-500.0,0.00047397,120]
[356514619,1742590894800,-500.0,0.00047397,120]
[356514620,1742590894833,-1518.33,0.00047397,120]
[356514621,1742590894867,-626.72,0.00047397,120]
[356514622,1742590894900,-748.42,0.00047397,120]
[356514623,1742590894934,-500.0,0.00047397,120]
[356514624,1742590894970,-500.0,0.00047397,120]
[356514625,1742590895006,-500.0,0.00047397,120]
[356514626,1742590895043,-500.0,0.00047397,120]
[356514627,1742590895081,-551.68,0.00047397,120]
[356514628,1742590895117,-908.94,0.00047397,120]
[356514629,1742590895156,-500.0,0.00047397,120]
[356514630,1742590895193,-500.0,0.00047397,120]
[356514631,1742590895228,-522.96,0.00047397,120]
[356514632,1742590895263,-500.0,0.00047397,120]
[356514633,1742590895299,-500.0,0.00047397,120]
[356514634,1742590895334,-500.0,0.00047397,120]
[356514635,1742590895370,-803.98,0.00047397,120]
[356514636,1742590895409,-500.0,0.00047397,120]
[356514637,1742590895446,-500.0,0.00047397,120]
[356514638,1742590895483,-500.0,0.00047397,120]
[356514639,1742590895522,-10000.0,0.00047432,31]
[356514640,1742590895559,-24178.37491813,0.00047534,120]
[356514641,1742590895603,-751.9,0.0004767,120]
[356514642,1742590895640,-751.9,0.0004767,120]
[356514643,1742590895677,-751.9,0.0004767,120]
[356514644,1742590895713,-671.31,0.0004767,120]
[356514645,1742590895748,-671.31,0.0004767,120]
[356514646,1742590895782,-671.31,0.0004767,120]
[356514647,1742590895816,-2533.5,0.0004767,120]
[356514648,1742590895852,-2533.5,0.0004767,120]
[356514649,1742590895886,-1623.31,0.0004767,120]
[356514650,1742590895920,-1623.31,0.0004767,120]
[356514651,1742590895954,-680.94,0.0004767,120]
[356514652,1742590895990,-680.94,0.0004767,120]
[356514653,1742590896025,-500.0,0.0004767,120]
[356514654,1742590896060,-2422.98518642,0.00047671,120]
[356514655,1742590896095,-500.0,0.00047671,120]
[356514656,1742590896130,-500.0,0.00047671,120]
[356514657,1742590896167,-500.0,0.00047671,120]
[356514658,1742590896201,-500.0,0.00047671,120]
[356514659,1742590896235,-500.0,0.00047671,120]
[356514660,1742590896270,-500.0,0.00047671,120]
[356514661,1742590896306,-500.0,0.00047671,120]
[356514662,1742590896342,-393.98358122,0.00047671,120]
[356514663,1742590896380,-500.0,0.00047671,120]
[356514664,1742590896415,-380.47765863,0.00047671,120]
[356514665,1742590896449,-500.0,0.00047671,120]
[356514666,1742590896483,-500.0,0.00047671,120]
[356514667,1742590896517,-500.0,0.00047671,120]
[356514668,1742590896550,-499.9049698,0.00047671,120]
[356514669,1742590896585,-500.0,0.00047671,120]
[356514670,1742590896620,-500.0,0.00047671,120]
[356514671,1742590896654,-500.0,0.00047671,120]
[356514672,1742590896689,-500.0,0.00047671,120]
[356514673,1742590896723,-500.0,0.00047671,120]
[356514674,1742590896756,-500.0,0.00047671,120]
[356514675,1742590896788,-500.0,0.00047671,120]
[356514676,1742590896822,-500.0,0.00047671,120]
[356514677,1742590896855,-500.0,0.00047671,120]
[356514678,1742590896890,-582.84399349,0.00047671,120]
[356514679,1742590896923,-500.0,0.00047671,120]
[356514680,1742590896958,-500.0,0.00047671,120]
[356514681,1742590896991,-500.0,0.00047671,120]
[356514682,1742590897023,-513.54323595,0.00047671,120]
[356514683,1742590897056,-500.0,0.00047671,120]
[356514684,1742590897091,-626.93,0.00047671,120]
[356514685,1742590897132,-504.21171384,0.00047671,120]
[356514686,1742590897173,-500.0,0.00047671,120]
[356514687,1742590897212,-166.6709206,0.00047671,120]
[356514688,1742590897251,-448.04776728,0.00047671,120]
[356514689,1742590897284,-500.0,0.00047671,120]
[356514690,1742590897317,-500.0,0.00047671,120]
[356514691,1742590897353,-500.0,0.00047671,120]
[356514692,1742590897387,-500.0,0.00047671,120]
[356514693,1742590897421,-207.3589071,0.00047671,120]
[356514694,1742590897456,-500.0,0.00047671,120]
[356514695,1742590897491,-500.0,0.00047671,120]
[356514696,1742590897526,-500.0,0.00047671,120]
[356514697,1742590897560,-500.0,0.00047671,120]
[356514698,1742590897596,-500.0,0.00047671,120]
[356514699,1742590897633,-500.0,0.00047671,120]
[356514700,1742590897669,-422.76635373,0.00047671,120]
[356514701,1742590897703,-500.0,0.00047671,120]
[356514702,1742590897737,-500.0,0.00047671,120]
[356514703,1742590897771,-500.0,0.00047671,120]
[356514704,1742590897805,-500.0,0.00047671,120]
[356514705,1742590897839,-500.0,0.00047671,120]
[356514706,1742590897871,-500.0,0.00047671,120]
[356514707,1742590897905,-571.09,0.00047671,120]
[356514708,1742590897939,-500.0,0.00047671,120]
[356514709,1742590897974,-500.0,0.00047671,120]
[356514710,1742590898007,-500.0,0.00047671,120]
[356514711,1742590898206,-500.0,0.00047671,120]
[356514712,1742590898243,-570.18027496,0.00047671,120]
[356514713,1742590898280,-500.0,0.00047671,120]
[356514714,1742590898315,-500.0,0.00047671,120]
[356514715,1742590898356,-500.0,0.00047671,120]
[356514716,1742590898391,-500.0,0.00047671,120]
[356514717,1742590898426,-500.0,0.00047671,120]
[356514718,1742590898460,-500.0,0.00047671,120]
[356514719,1742590898496,-500.0,0.00047671,120]
[356514720,1742590898531,-500.0,0.00047671,120]
[356514721,1742590898566,-500.0,0.00047671,120]
[356514722,1742590898603,-500.0,0.00047671,120]
[356514723,1742590898640,-273.15066024,0.00047671,120]
[356514724,1742590898677,-552.18,0.00047671,120]
[356514725,1742590898713,-500.0,0.00047671,120]
[356514726,1742590898752,-381.80189321,0.00047671,120]
[356514727,1742590898791,-500.0,0.00047671,120]
[356514728,1742590898827,-500.0,0.00047671,120]
[356514729,1742590898865,-500.0,0.00047671,120]
[356514730,1742590898901,-517.27035113,0.00047671,120]
[356514731,1742590898937,-500.0,0.00047671,120]
[356514732,1742590898972,-500.0,0.00047671,120]
[356514733,1742590899007,-518.11868739,0.00047671,120]
[356514734,1742590899043,-186.95576938,0.00047671,120]
[356514735,1742590899079,-500.0,0.00047671,120]
[356514736,1742590899115,-500.0,0.00047671,120]
[356514737,1742590899156,-645.24527746,0.00047671,120]
[356514738,1742590899194,-452.16265215,0.00047671,120]
[356514739,1742590899230,-512.07904553,0.00047671,120]
[356514740,1742590899265,-500.0,0.00047671,120]
[356514741,1742590899300,-500.0,0.00047671,120]
[356514742,1742590899335,-500.0,0.00047671,120]
[356514743,1742590899370,-500.0,0.00047671,120]
[356514744,1742590899409,-500.0,0.00047671,120]
[356514745,1742590899448,-500.0,0.00047671,120]
[356514746,1742590899488,-176.95319862,0.00047671,120]
[356514747,1742590899528,-500.0,0.00047671,120]
[356514748,1742590899569,-505.02843904,0.00047671,120]
[356514749,1742590899610,-500.0,0.00047671,120]
[356514750,1742590899645,-613.54,0.00047671,120]
[356514751,1742590899680,-500.0,0.00047671,120]
[356514752,1742590899714,-511.45480247,0.00047671,120]
[356514753,1742590899754,-3031.23,0.00047671,120]
[356514754,1742590899793,-500.0,0.00047671,120]
[356514755,1742590899832,-579.04665147,0.00047671,120]
[356514756,1742590899874,-500.0,0.00047671,120]
[356514757,1742590899911,-500.0,0.00047671,120]
[356514758,1742590899948,-500.0,0.00047671,120]
[356514759,1742590899988,-500.0,0.00047671,120]
[356514760,1742590900028,-500.0,0.00047671,120]
[356514761,1742590900065,-500.0,0.00047671,120]
[356514762,1742590900105,-515.73972132,0.00047671,120]
[356514763,1742590900144,-585.21,0.00047671,120]
[356514764,1742590900178,-500.0,0.00047671,120]
[356514765,1742590900215,-500.0,0.00047671,120]
[356514766,1742590900250,-779.96,0.00047671,120]
[356514767,1742590900285,-556.79,0.00047671,120]
[356514768,1742590900320,-505.61188125,0.00047671,120]
[356514769,1742590900356,-500.0,0.00047671,120]
[356514770,1742590900394,-500.0,0.00047671,120]
[356514771,1742590900429,-500.0,0.00047671,120]
[356514772,1742590900464,-511.88466216,0.00047671,120]
[356514773,1742590900499,-588.11,0.00047671,120]
[356514774,1742590900533,-500.0,0.00047671,120]
[356514775,1742590900569,-521.25326942,0.00047671,120]
[356514776,1742590900605,-500.0,0.00047671,120]
[356514777,1742590900638,-511.37729016,0.00047671,120]
[356514778,1742590900673,-500.0,0.00047671,120]
[356514779,1742590900707,-515.34845389,0.00047671,120]
[356514780,1742590900741,-512.95,0.00047671,120]
[356514781,1742590900776,-632.53,0.00047671,120]
[356514782,1742590900810,-500.0,0.00047671,120]
[356514783,1742590900844,-557.83,0.00047671,120]
[356514784,1742590900878,-513.383542,0.00047671,120]
[356514785,1742590900912,-500.0,0.00047671,120]
[356514786,1742590900947,-1613.87,0.00047671,120]
[356514787,1742590900982,-500.0,0.00047671,120]
[356514788,1742590901017,-932.03,0.00047671,120]
[356514789,1742590901051,-500.0,0.00047671,120]
[356514790,1742590901085,-544.88176806,0.00047671,120]
[356514791,1742590901120,-559.2,0.00047671,120]
[356514792,1742590901159,-500.0,0.00047671,120]
[356514793,1742590901193,-503.06778223,0.00047671,120]
[356514794,1742590901231,-632.98,0.00047671,120]
[356514795,1742590901266,-500.0,0.00047671,120]
[356514796,1742590901303,-500.0,0.00047671,120]
[356514797,1742590901339,-521.2573896,0.00047671,120]
[356514798,1742590901378,-500.0,0.00047671,120]
[356514799,1742590901414,-500.0,0.00047671,120]
[356514800,1742590901452,-500.0,0.00047671,120]
[356514801,1742590901490,-503.02634172,0.00047671,120]
[356514802,1742590901527,-503.63684194,0.00047671,120]
[356514803,1742590901564,-500.0,0.00047671,120]
[356514804,1742590901602,-622.01916065,0.00047671,120]
[356514805,1742590901640,-519.11,0.00047671,120]
[356514806,1742590901677,-500.0,0.00047671,120]
[356514807,1742590901712,-500.0,0.00047671,120]
[356514808,1742590901747,-500.0,0.00047671,120]
[356514809,1742590901783,-500.0,0.00047671,120]
[356514810,1742590901818,-500.0,0.00047671,120]
[356514811,1742590901852,-500.0,0.00047671,120]
[356514812,1742590901886,-500.0,0.00047671,120]
[356514813,1742590901920,-500.0,0.00047671,120]
[356514814,1742590901954,-500.0,0.00047671,120]
[356514815,1742590902156,-500.0,0.00047671,120]
[356514816,1742590902194,-500.0,0.00047671,120]
[356514817,1742590902231,-500.0,0.00047671,120]
[356514818,1742590902266,-500.0,0.00047671,120]
[356514819,1742590902299,-500.0,0.00047671,120]
[356514820,1742590902332,-500.0,0.00047671,120]
[356514821,1742590902367,-500.0,0.00047671,120]
[356514822,1742590902401,-1050.8,0.00047671,120]
[356514823,1742590902435,-500.0,0.00047671,120]
[356514824,1742590902469,-500.0,0.00047671,120]
[356514825,1742590902504,-1795.27,0.00047671,120]
[356514826,1742590902538,-659.25,0.00047671,120]
[356514827,1742590902572,-500.0,0.00047671,120]
[356514828,1742590902609,-503.80966549,0.00047671,120]
[356514829,1742590902647,-500.0,0.00047671,120]
[356514830,1742590902682,-503.29565923,0.00047671,120]
[356514831,1742590902719,-500.0,0.00047671,120]
[356514832,1742590902754,-527.78,0.00047671,120]
[356514833,1742590902790,-500.0,0.00047671,120]
[356514834,1742590902825,-500.0,0.00047671,120]
[356514835,1742590902861,-500.0,0.00047671,120]
[356514836,1742590902894,-500.0,0.00047671,120]
[356514837,1742590902928,-500.0,0.00047671,120]
[356514838,1742590902962,-500.0,0.00047671,120]
[356514839,1742590902997,-500.0,0.00047671,120]
[356514840,1742590903032,-584.31,0.00047671,120]
[356514841,1742590903068,-500.0,0.00047671,120]
[356514842,1742590903107,-500.0,0.00047671,120]
[356514843,1742590903145,-500.0,0.00047671,120]
[356514844,1742590903184,-500.0,0.00047671,120]
[356514845,1742590903228,-500.0,0.00047671,120]
[356514846,1742590903271,-661.65,0.00047671,120]
[356514847,1742590903315,-506.07792817,0.00047671,120]
[356514848,1742590903360,-1000.0,0.00047671,120]
[356514849,1742590903403,-500.0,0.00047671,120]
[356514850,1742590903442,-501.5325327,0.00047671,120]
[356514851,1742590903478,-504.82603076,0.00047671,120]
[356514852,1742590903514,-500.0,0.00047671,120]
[356514853,1742590903550,-500.0,0.00047671,120]
[356514854,1742590903587,-500.0,0.00047671,120]
[356514855,1742590903625,-500.0,0.00047671,120]
[356514856,1742590903662,-500.0,0.00047671,120]
[356514857,1742590903700,-500.0,0.00047671,120]
[356514858,1742590903737,-500.0,0.00047671,120]
[356514859,1742590903774,-610.91598625,0.00047671,120]
[356514860,1742590903811,-500.0,0.00047671,120]
[356514861,1742590903849,-563.72,0.00047671,120]
[356514862,1742590903886,-500.0,0.00047671,120]
[356514863,1742590903923,-593.76691024,0.00047671,120]
[356514864,1742590903964,-500.0,0.00047671,120]
[356514865,1742590904001,-500.0,0.00047671,120]
[356514866,1742590904038,-500.0,0.00047671,120]
[356514867,1742590904074,-500.0,0.00047671,120]
[356514868,1742590904113,-500.0,0.00047671,120]
[356514869,1742590904154,-616.75675409,0.00047671,120]
[356514870,1742590904190,-500.0,0.00047671,120]
[356514871,1742590904228,-500.0,0.00047671,120]
[356514872,1742590904265,-300.0,0.00047671,120]
[356514873,1742590904301,-505.25627972,0.00047671,120]
[356514874,1742590904338,-500.0,0.00047671,120]
[356514875,1742590904376,-500.0,0.00047671,120]
[356514876,1742590904412,-583.05,0.00047671,120]
[356514877,1742590904450,-500.0,0.00047671,120]
[356514878,1742590904487,-500.0,0.00047671,120]
[356514879,1742590904525,-500.0,0.00047671,120]
[356514880,1742590904561,-500.0,0.00047671,120]
[356514881,1742590904598,-500.0,0.00047671,120]
[356514882,1742590904634,-500.0,0.00047671,120]
[356514883,1742590904672,-500.0,0.00047671,120]
[356514884,1742590904708,-500.0,0.00047671,120]
[356514885,1742590904744,-1033.31,0.00047671,120]
[356514886,1742590904780,-500.0,0.00047671,120]
[356514887,1742590904815,-500.0,0.00047671,120]
[356514888,1742590904851,-500.0,0.00047671,120]
[356514889,1742590904885,-500.0,0.00047671,120]
[356514890,1742590904920,-782.8,0.00047671,120]
[356514891,1742590904957,-500.0,0.00047671,120]
[356514892,1742590904994,-517.10630873,0.00047671,120]
[356514893,1742590905031,-3461.06,0.00047671,120]
[356514894,1742590905066,-500.0,0.00047671,120]
[356514895,1742590905101,-500.0,0.00047671,120]
[356514896,1742590905136,-229.32094782,0.00047671,120]
[356514897,1742590905170,-500.0,0.00047671,120]
[356514898,1742590905204,-500.0,0.00047671,120]
[356514899,1742590905239,-500.0,0.00047671,120]
[356514900,1742590905273,-500.0,0.00047671,120]
[356514901,1742590905307,-500.0,0.00047671,120]
[356514902,1742590905341,-500.0,0.00047671,120]
[356514903,1742590905377,-505.7,0.00047671,120]
[356514904,1742590905412,-500.0,0.00047671,120]
[356514905,1742590905447,-500.0,0.00047671,120]
[356514906,1742590905481,-500.0,0.00047671,120]
[356514907,1742590905516,-500.0,0.00047671,120]
[356514908,1742590905551,-500.0,0.00047671,120]
[356514909,1742590905586,-614.18,0.00047671,120]
[356514910,1742590905622,-500.0,0.00047671,120]
[356514911,1742590905657,-500.0,0.00047671,120]
[356514912,1742590905690,-500.0,0.00047671,120]
[356514913,1742590905722,-500.0,0.00047671,120]
[356514914,1742590905754,-500.0,0.00047671,120]
[356514915,1742590905787,-500.0,0.00047671,120]
[356514916,1742590905820,-500.0,0.00047671,120]
[356514917,1742590905854,-508.68,0.00047671,120]
[356514918,1742590905887,-500.0,0.00047671,120]
[356514919,1742590906069,-500.0,0.00047671,120]
[356514920,1742590906112,-500.0,0.00047671,120]
[356514921,1742590906154,-500.0,0.00047671,120]
[356514922,1742590906189,-723.25,0.00047671,120]
[356514923,1742590906225,-500.0,0.00047671,120]
[356514924,1742590906260,-500.0,0.00047671,120]
[356514925,1742590906296,-690.77,0.00047671,120]
[356514926,1742590906333,-545.49,0.00047671,120]
[356514927,1742590906370,-549.7,0.00047671,120]
[356514928,1742590906406,-806.33,0.00047671,120]
[356514929,1742590906440,-500.0,0.00047671,120]
[356514930,1742590906474,-2499.87,0.00047671,120]
[356514931,1742590906509,-500.0,0.00047671,120]
[356514932,1742590906544,-500.0,0.00047671,120]
[356514933,1742590906579,-832.27,0.00047671,120]
[356514934,1742590906615,-776.34,0.00047671,120]
[356514935,1742590906654,-500.0,0.00047671,120]
[356514936,1742590906689,-500.0,0.00047671,120]
[356514937,1742590906723,-500.0,0.00047671,120]
[356514938,1742590906756,-500.0,0.00047671,120]
[356514940,1742590906791,-500.0,0.00047671,120]
[356514941,1742590906825,-500.0,0.00047671,120]
[356514942,1742590906862,-500.0,0.00047671,120]
[356514943,1742590906897,-553.28,0.00047671,120]
[356514944,1742590906931,-500.0,0.00047671,120]
[356514945,1742590906966,-500.0,0.00047671,120]
[356514946,1742590907002,-500.0,0.00047671,120]
[356514947,1742590907037,-500.0,0.00047671,120]
[356514948,1742590907072,-706.27,0.00047671,120]
[356514949,1742590907105,-246.35669231,0.00047671,120]
[356514951,1742590907140,-500.0,0.00047671,120]
[356514952,1742590907174,-500.0,0.00047671,120]
[356514953,1742590907207,-512.51546149,0.00047671,120]
[356514954,1742590907240,-956.18,0.00047671,120]
[356514955,1742590907272,-500.0,0.00047671,120]
[356514956,1742590907304,-500.0,0.00047671,120]
[356514957,1742590907343,-500.0,0.00047671,120]
[356514958,1742590907376,-722.07,0.00047671,120]
[356514959,1742590907409,-500.0,0.00047671,120]
[356514960,1742590907442,-500.0,0.00047671,120]
[356514961,1742590907474,-802.32,0.00047671,120]
[356514962,1742590907506,-605.27281229,0.00047671,120]
[356514963,1742590907538,-500.0,0.00047671,120]
[356514964,1742590907570,-500.0,0.00047671,120]
[356514965,1742590907604,-500.0,0.00047671,120]
[356514966,1742590907637,-500.0,0.00047671,120]
[356514967,1742590907670,-500.0,0.00047671,120]
[356514968,1742590907702,-500.0,0.00047671,120]
[356514969,1742590907734,-574.54,0.00047671,120]
[356514970,1742590907766,-625.98,0.00047671,120]
[356514971,1742590907798,-500.0,0.00047671,120]
[356514972,1742590907830,-446.37549675,0.00047671,120]
[356514973,1742590907862,-500.0,0.00047671,120]
[356514974,1742590907895,-500.0,0.00047671,120]
[356514975,1742590907928,-1500.0,0.00047671,120]
[356514976,1742590907962,-500.0,0.00047671,120]
[356514977,1742590907996,-213.54041672,0.00047671,120]
[356514978,1742590908031,-500.0,0.00047671,120]
[356514979,1742590908067,-500.0,0.00047671,120]
[356514980,1742590908105,-507.49842655,0.00047671,120]
[356514981,1742590908145,-621.05633,0.00047671,120]
[356514982,1742590908182,-500.0,0.00047671,120]
[356514983,1742590908219,-598.11,0.00047671,120]
[356514984,1742590908255,-500.0,0.00047671,120]
[356514985,1742590908290,-2418.17,0.00047671,120]
[356514986,1742590908324,-500.0,0.00047671,120]
[356514987,1742590908359,-500.0,0.00047671,120]
[356514988,1742590908393,-500.0,0.00047671,120]
[356514989,1742590908428,-500.0,0.00047671,120]
[356514990,1742590908463,-500.0,0.00047671,120]
[356514991,1742590908496,-500.0,0.00047671,120]
[356514992,1742590908531,-500.0,0.00047671,120]
[356514993,1742590908564,-500.0,0.00047671,120]